[Event "MCR rapid mládeže 2023 U16"]
[Site "Harachov, Czech Republic"]
[Date "2023.09.10"]
[Round "9.28"]
[White "Strazhnyk, Viktoriia"]
[Black "Janouskova, Eliska"]
[Result "1-0"]
[TimeControl "20min+5s/move"]
[WhiteElo "1392"]
[BlackElo "1333"]

1. e4 {[%clk 00:19:49]} {[%emt 00:00:21]} c5 {[%clk 00:20:08]} {[%emt
00:00:02]} 2. d4 {[%clk 00:19:52]} {[%emt 00:00:02]} cxd4 {[%clk 00:20:09]}
{[%emt 00:00:04]} 3. c3 {[%clk 00:19:55]} {[%emt 00:00:01]} d3 {[%clk
00:20:12]} {[%emt 00:00:03]} 4. Bxd3 {[%clk 00:19:54]} {[%emt 00:00:05]} d6
{[%clk 00:20:00]} {[%emt 00:00:17]} 5. Nf3 {[%clk 00:19:53]} {[%emt 00:00:06]}
e6 {[%clk 00:19:58]} {[%emt 00:00:07]} 6. e5 {[%clk 00:19:40]} {[%emt
00:00:18]} dxe5 {[%clk 00:18:50]} {[%emt 00:01:13]} 7. Nxe5 {[%clk 00:19:40]}
{[%emt 00:00:05]} a6 {[%emt 00:02:01]} 8. Bb5+ {[%clk 00:17:39]} {[%emt
00:02:04]} axb5 {[%clk 00:16:29]} {[%emt 00:00:33]} 9. Qxd8+ {[%clk 00:17:42]}
{[%emt 00:00:02]} Kxd8 {[%clk 00:16:32]} {[%emt 00:00:02]} 10. Nxf7+ {[%clk
00:17:45]} {[%emt 00:00:01]} Ke8 {[%clk 00:15:39]} {[%emt 00:00:59]} 11. Nxh8
{[%clk 00:17:47]} {[%emt 00:00:02]} Nf6 {[%clk 00:14:48]} {[%emt 00:00:56]} 12.
Bf4 {[%clk 00:17:34]} {[%emt 00:00:15]} Nc6 {[%clk 00:14:11]} {[%emt 00:00:45]}
13. O-O {[%clk 00:17:10]} {[%emt 00:00:30]} Bd7 {[%clk 00:13:29]} {[%emt
00:00:46]} 14. Nd2 {[%clk 00:17:06]} {[%emt 00:00:10]} Ke7 {[%clk 00:12:34]}
{[%emt 00:01:32]} 15. Nf3 {[%clk 00:17:54]} {[%emt 00:00:15]} h6 {[%clk
00:12:31]} {[%emt 00:00:08]} 16. Ng6+ {[%clk 00:17:50]} {[%emt 00:00:09]} Kf7
{[%clk 00:12:24]} {[%emt 00:00:12]} 17. Nxf8 {[%clk 00:17:51]} {[%emt
00:00:04]} Rxf8 {[%clk 00:12:28]} {[%emt 00:00:02]} 18. Ne5+ {[%clk 00:17:35]}
{[%emt 00:00:21]} Nxe5 {[%clk 00:12:20]} {[%emt 00:00:12]} 19. Bxe5 {[%clk
00:17:36]} {[%emt 00:00:04]} Nd5 {[%clk 00:12:08]} {[%emt 00:00:17]} 20. b3
{[%clk 00:16:50]} {[%emt 00:00:51]} Bc6 {[%clk 00:11:22]} {[%emt 00:00:51]} 21.
c4 {[%clk 00:16:32]} {[%emt 00:00:23]} bxc4 {[%clk 00:11:18]} {[%emt 00:00:09]}
22. bxc4 {[%clk 00:16:36]} {[%emt 00:00:02]} Nb4 {[%clk 00:11:20]} {[%emt
00:00:03]} 23. Bd6 {[%clk 00:16:26]} {[%emt 00:00:14]} Nc2 {[%clk 00:11:17]}
{[%emt 00:00:07]} 24. Rac1 {[%clk 00:16:26]} {[%emt 00:00:05]} Rd8 {[%clk
00:11:16]} {[%emt 00:00:08]} 25. Bc5 {[%clk 00:15:57]} {[%emt 00:00:33]} Nd4
{[%clk 00:10:44]} {[%emt 00:00:37]} 26. Bxd4 {[%clk 00:15:40]} {[%emt
00:00:22]} Rxd4 {[%clk 00:10:38]} {[%emt 00:00:12]} 27. Rfd1 {[%clk 00:15:40]}
{[%emt 00:00:04]} Re4 {[%clk 00:10:25]} {[%emt 00:00:18]} 28. Rd2 {[%clk
00:15:22]} {[%emt 00:00:19]} Kf6 {[%clk 00:09:44]} {[%emt 00:00:47]} 29. f3
{[%clk 00:15:21]} {[%emt 00:00:09]} Re5 {[%clk 00:09:44]} {[%emt 00:00:05]} 30.
Kf2 {[%clk 00:15:18]} {[%emt 00:00:08]} Rh5 {[%clk 00:09:15]} {[%emt 00:00:32]}
31. h3 {[%clk 00:15:16]} {[%emt 00:00:08]} Rh4 {[%clk 00:08:31]} {[%emt
00:00:49]} 32. Kg3 {[%clk 00:15:11]} {[%emt 00:00:11]} g5 {[%clk 00:08:13]}
{[%emt 00:00:23]} 33. c5 {[%clk 00:14:53]} {[%emt 00:00:23]} Ra4 {[%clk
00:07:58]} {[%emt 00:00:20]} 34. Re1 {[%clk 00:14:49]} {[%emt 00:00:08]} Bd5
{[%clk 00:07:55]} {[%emt 00:00:09]} 35. Rb1 {[%clk 00:14:33]} {[%emt 00:00:18]}
Rc4 {[%clk 00:07:29]} {[%emt 00:00:33]} 36. Rb5 {[%clk 00:14:02]} {[%emt
00:00:35]} Kf5 {[%clk 00:06:11]} {[%emt 00:01:24]} 37. Kf2 {[%clk 00:13:43]}
{[%emt 00:00:24]} Kf4 {[%clk 00:05:19]} {[%emt 00:00:55]} 38. a3 {[%clk
00:13:31]} {[%emt 00:00:20]} Kf5 {[%clk 00:04:51]} {[%emt 00:00:33]} 39. g4+
{[%clk 00:13:29]} {[%emt 00:00:06]} Kf6 {[%clk 00:04:40]} {[%emt 00:00:15]} 40.
Ke3 {[%clk 00:13:09]} {[%emt 00:00:26]} Ke5 {[%clk 00:04:12]} {[%emt 00:00:31]}
41. Re2 {[%clk 00:12:02]} {[%emt 00:01:15]} Kf6 {[%clk 00:03:24]} {[%emt
00:00:49]} 42. Kf2 {[%clk 00:11:28]} {[%emt 00:00:42]} Ra4 {[%clk 00:02:24]}
{[%emt 00:01:06]} 43. Re3 {[%clk 00:11:23]} {[%emt 00:00:10]} Rc4 {[%clk
00:02:23]} {[%emt 00:00:07]} 44. Kg3 {[%clk 00:11:10]} {[%emt 00:00:17]} Kg6
{[%clk 00:01:26]} {[%emt 00:01:00]} 45. h4 {[%clk 00:10:39]} {[%emt 00:00:37]}
Kf6 {[%clk 00:01:02]} {[%emt 00:00:30]} 46. hxg5+ {[%clk 00:10:06]} {[%emt
00:00:38]} hxg5 {[%clk 00:01:06]} {[%emt 00:00:01]} 47. Rb4 {[%clk 00:09:12]}
{[%emt 00:00:59]} Rxc5 {[%clk 00:00:36]} {[%emt 00:00:34]} 48. f4 {[%clk
00:09:16]} {[%emt 00:00:02]} Rc2 {[%clk 00:00:21]} {[%emt 00:00:20]} 49. fxg5+
{[%clk 00:09:01]} {[%emt 00:00:20]} Kxg5 {[%clk 00:00:24]} {[%emt 00:00:02]} 50.
Ra4 {[%clk 00:06:34]} {[%emt 00:02:32]} Rc8 {[%clk 00:00:15]} {[%emt 00:00:13]}
51. Ra5 {[%clk 00:06:26]} {[%emt 00:00:14]} Rf8 {[%clk 00:00:09]} {[%emt
00:00:11]} 52. Rxe6 {[%clk 00:06:09]} {[%emt 00:00:22]} Rf3+ {[%clk 00:00:10]}
{[%emt 00:00:04]} 53. Kg2 {[%clk 00:06:07]} {[%emt 00:00:07]} Re3+ {[%clk
00:00:12]} {[%emt 00:00:03]} 54. Rxd5+ {[%clk 00:05:57]} {[%emt 00:00:16]} Kh4
{[%clk 00:00:13]} {[%emt 00:00:03]} 55. Rh6+ {[%clk 00:05:54]} {[%emt
00:00:08]} 1-0

[Event "MCR rapid mládeže 2023 U16"]
[Site "Harachov, Czech Republic"]
[Date "2023.09.10"]
[Round "9.30"]
[White "Zika, Miroslav"]
[Black "Fadrny, Jachym"]
[Result "0-1"]
[TimeControl "20min+5s/move"]
[WhiteElo "1199"]
[BlackElo "1347"]

1. c4 {[%clk 00:20:08]} e6 {[%clk 00:20:05]} {[%emt 00:00:06]} 2. Nf3 {[%clk
00:20:08]} {[%emt 00:00:06]} Nf6 {[%clk 00:20:08]} {[%emt 00:00:01]} 3. Nc3
{[%clk 00:20:10]} {[%emt 00:00:03]} b6 {[%clk 00:20:06]} {[%emt 00:00:07]} 4.
g3 {[%clk 00:19:58]} {[%emt 00:00:18]} Bb7 {[%clk 00:20:09]} {[%emt 00:00:02]}
5. Bg2 {[%clk 00:20:01]} {[%emt 00:00:01]} Bb4 {[%clk 00:19:56]} {[%emt
00:00:18]} 6. O-O {[%clk 00:19:59]} {[%emt 00:00:07]} O-O {[%clk 00:19:57]}
{[%emt 00:00:04]} 7. d3 {[%clk 00:19:59]} {[%emt 00:00:05]} Bxc3 {[%clk
00:19:56]} {[%emt 00:00:07]} 8. bxc3 {[%clk 00:20:03]} {[%emt 00:00:01]} d5
{[%clk 00:19:59]} {[%emt 00:00:02]} 9. cxd5 {[%clk 00:20:05]} {[%emt 00:00:03]}
Nxd5 {[%clk 00:20:01]} {[%emt 00:00:01]} 10. Bb2 {[%clk 00:20:08]} {[%emt
00:00:03]} Nd7 {[%clk 00:19:47]} {[%emt 00:00:19]} 11. Nd2 {[%clk 00:20:00]}
{[%emt 00:00:13]} Rb8 {[%clk 00:19:17]} {[%emt 00:00:35]} 12. c4 {[%clk
00:19:49]} {[%emt 00:00:17]} N5f6 {[%clk 00:19:10]} {[%emt 00:00:11]} 13. Bxb7
{[%clk 00:19:48]} {[%emt 00:00:06]} Rxb7 {[%clk 00:19:13]} {[%emt 00:00:02]} 14.
Qb3 {[%clk 00:19:46]} {[%emt 00:00:07]} Nc5 {[%clk 00:19:12]} {[%emt 00:00:06]}
15. Qc2 {[%clk 00:19:48]} {[%emt 00:00:03]} Qe7 {[%clk 00:18:39]} {[%emt
00:00:39]} 16. Nb3 {[%clk 00:19:46]} {[%emt 00:00:07]} Rfb8 {[%clk 00:18:20]}
{[%emt 00:00:24]} 17. d4 {[%clk 00:19:26]} {[%emt 00:00:24]} Nxb3 {[%clk
00:18:20]} {[%emt 00:00:05]} 18. axb3 {[%clk 00:19:28]} {[%emt 00:00:04]} b5
{[%clk 00:18:00]} {[%emt 00:00:26]} 19. c5 {[%clk 00:19:16]} {[%emt 00:00:15]}
c6 {[%clk 00:17:50]} {[%emt 00:00:15]} 20. Ra6 {[%clk 00:19:07]} {[%emt
00:00:14]} Nd5 {[%clk 00:17:48]} {[%emt 00:00:07]} 21. Bc3 {[%clk 00:18:51]}
{[%emt 00:00:21]} Qd7 {[%clk 00:16:50]} {[%emt 00:01:04]} 22. Rd1 {[%clk
00:18:34]} {[%emt 00:00:22]} b4 {[%clk 00:16:38]} {[%emt 00:00:17]} 23. Bb2
{[%clk 00:18:27]} {[%emt 00:00:11]} Nc7 {[%clk 00:16:16]} {[%emt 00:00:27]} 24.
Ra4 {[%clk 00:18:17]} {[%emt 00:00:15]} Qe7 {[%clk 00:15:06]} {[%emt 00:01:14]}
25. Rd3 {[%clk 00:17:57]} {[%emt 00:00:26]} a6 {[%clk 00:13:57]} {[%emt
00:01:15]} 26. Rf3 {[%clk 00:17:34]} {[%emt 00:00:28]} Rd8 {[%clk 00:12:28]}
{[%emt 00:01:34]} 27. Qc4 {[%clk 00:17:11]} {[%emt 00:00:27]} Rb5 {[%clk
00:10:19]} {[%emt 00:02:14]} 28. Rxb4 {[%clk 00:15:59]} {[%emt 00:01:17]} Rdb8
{[%clk 00:10:14]} {[%emt 00:00:10]} 29. Ba3 {[%clk 00:15:14]} {[%emt 00:00:51]}
Rxb4 {[%clk 00:09:17]} {[%emt 00:01:01]} 30. Bxb4 {[%clk 00:15:05]} {[%emt
00:00:14]} Nd5 {[%clk 00:08:42]} {[%emt 00:00:40]} 31. Ba5 {[%clk 00:14:39]}
{[%emt 00:00:31]} Rb5 {[%clk 00:08:21]} {[%emt 00:00:27]} 32. b4 {[%clk
00:14:21]} {[%emt 00:00:22]} e5 {[%clk 00:07:42]} {[%emt 00:00:44]} 33. dxe5
{[%clk 00:14:10]} {[%emt 00:00:16]} Qxe5 {[%clk 00:07:40]} {[%emt 00:00:07]} 34.
e4 {[%clk 00:13:24]} {[%emt 00:00:51]} Qh5 {[%clk 00:06:34]} {[%emt 00:01:10]}
35. Kg2 {[%clk 00:13:09]} {[%emt 00:00:21]} Nf6 {[%clk 00:05:45]} {[%emt
00:00:54]} 36. Qd3 {[%clk 00:12:31]} {[%emt 00:00:43]} h6 {[%clk 00:05:20]}
{[%emt 00:00:30]} 37. Qd8+ {[%clk 00:11:55]} {[%emt 00:00:41]} Kh7 {[%clk
00:04:23]} {[%emt 00:01:03]} 38. Qa8 {[%clk 00:11:34]} {[%emt 00:00:25]} Nxe4
{[%clk 00:03:34]} {[%emt 00:00:54]} 39. Qxc6 {[%clk 00:11:25]} {[%emt
00:00:14]} Ng5 {[%clk 00:03:21]} {[%emt 00:00:18]} 40. Rf4 {[%clk 00:10:50]}
{[%emt 00:00:40]} Qh3+ {[%clk 00:03:02]} {[%emt 00:00:24]} 41. Kg1 {[%clk
00:10:39]} {[%emt 00:00:16]} Rb8 {[%clk 00:02:14]} {[%emt 00:00:52]} 42. Qg2
{[%clk 00:10:18]} {[%emt 00:00:27]} Re8 {[%clk 00:02:12]} {[%emt 00:00:06]} 43.
f3 {[%clk 00:08:49]} {[%emt 00:01:35]} Re1+ {[%clk 00:01:56]} {[%emt 00:00:21]}
44. Kf2 {[%clk 00:08:40]} {[%emt 00:00:14]} Re2+ {[%clk 00:01:57]} {[%emt
00:00:05]} 45. Kxe2 {[%clk 00:08:41]} {[%emt 00:00:03]} Qxg2+ {[%clk 00:02:00]}
{[%emt 00:00:02]} 46. Ke3 {[%clk 00:08:36]} {[%emt 00:00:10]} Qg1+ {[%clk
00:01:50]} {[%emt 00:00:14]} 47. Kd3 {[%clk 00:08:24]} {[%emt 00:00:18]} Qd1+
{[%clk 00:01:48]} {[%emt 00:00:05]} 48. Kc4 {[%clk 00:08:14]} {[%emt 00:00:17]}
Nxf3 {[%clk 00:01:43]} {[%emt 00:00:11]} 49. c6 {[%clk 00:07:24]} {[%emt
00:00:55]} Qe2+ {[%clk 00:01:29]} {[%emt 00:00:17]} 50. Kc5 {[%clk 00:07:11]}
{[%emt 00:00:19]} Qe7+ {[%clk 00:01:20]} {[%emt 00:00:13]} 51. Kb6 {[%clk
00:07:07]} {[%emt 00:00:10]} Ne5 {[%clk 00:01:01]} {[%emt 00:00:25]} 52. c7
{[%clk 00:06:55]} {[%emt 00:00:17]} Qe8 {[%clk 00:00:46]} {[%emt 00:00:19]} 53.
Kb7 {[%clk 00:06:30]} {[%emt 00:00:30]} Qc6+ {[%clk 00:00:39]} {[%emt
00:00:12]} 54. Kb8 {[%clk 00:06:09]} {[%emt 00:00:27]} Nd7+ {[%clk 00:00:32]}
{[%emt 00:00:11]} 55. Ka7 {[%clk 00:05:21]} {[%emt 00:00:53]} Nf6 {[%clk
00:00:28]} {[%emt 00:00:09]} 56. Rd4 {[%clk 00:05:01]} {[%emt 00:00:25]} Ne8
{[%clk 00:00:21]} {[%emt 00:00:11]} 57. Kb8 {[%clk 00:04:21]} {[%emt 00:00:46]}
Qb5+ {[%clk 00:00:21]} {[%emt 00:00:05]} 58. Kc8 {[%clk 00:03:55]} {[%emt
00:00:31]} Kg8 {[%clk 00:00:17]} {[%emt 00:00:09]} 59. Kd8 {[%clk 00:03:35]}
{[%emt 00:00:25]} Qg5+ {[%clk 00:00:13]} {[%emt 00:00:08]} 60. Kd7 {[%clk
00:03:20]} {[%emt 00:00:21]} Nxc7 {[%clk 00:00:14]} {[%emt 00:00:05]} 61. Bxc7
{[%clk 00:03:13]} {[%emt 00:00:12]} Qf6 {[%clk 00:00:17]} {[%emt 00:00:01]} 62.
Rd6 {[%clk 00:03:08]} {[%emt 00:00:10]} Qf5+ {[%clk 00:00:21]} {[%emt
00:00:01]} 63. Kd8 {[%clk 00:03:03]} {[%emt 00:00:10]} Kf8 {[%clk 00:00:23]}
{[%emt 00:00:02]} 64. Rxa6 {[%clk 00:02:43]} {[%emt 00:00:26]} Qb5 {[%clk
00:00:24]} {[%emt 00:00:04]} 65. Rb6 {[%clk 00:02:36]} {[%emt 00:00:12]} Qe8#
{[%clk 00:00:28]} {[%emt 00:00:01]} 0-1

[Event "MCR rapid mládeže 2023 U16"]
[Site "Harachov, Czech Republic"]
[Date "2023.09.10"]
[Round "9.31"]
[White "Zelenka, Tomas"]
[Black "Vo, Daniel"]
[Result "1-0"]
[TimeControl "20min+5s/move"]
[WhiteElo "1457"]
[BlackElo "1445"]

1. e4 {[%clk 00:20:08]} {[%emt 00:00:01]} c5 {[%clk 00:20:08]} {[%emt
00:00:03]} 2. d3 {[%clk 00:20:11]} {[%emt 00:00:01]} Nc6 {[%clk 00:20:10]}
{[%emt 00:00:03]} 3. g3 {[%clk 00:20:14]} {[%emt 00:00:02]} d6 {[%clk
00:20:14]} {[%emt 00:00:02]} 4. Bg2 {[%clk 00:20:16]} {[%emt 00:00:03]} Nf6
{[%clk 00:20:13]} {[%emt 00:00:06]} 5. f4 {[%clk 00:20:19]} {[%emt 00:00:02]}
e6 {[%clk 00:20:12]} {[%emt 00:00:07]} 6. Nf3 {[%clk 00:20:21]} {[%emt
00:00:02]} Be7 {[%clk 00:20:06]} {[%emt 00:00:11]} 7. O-O {[%clk 00:20:21]}
{[%emt 00:00:04]} O-O {[%clk 00:20:08]} {[%emt 00:00:04]} 8. h3 {[%clk
00:20:21]} {[%emt 00:00:05]} d5 {[%clk 00:19:47]} {[%emt 00:00:26]} 9. Nc3
{[%clk 00:19:50]} {[%emt 00:00:34]} dxe4 {[%clk 00:19:37]} {[%emt 00:00:17]} 10.
Nxe4 {[%clk 00:19:41]} {[%emt 00:00:14]} h6 {[%clk 00:19:02]} {[%emt 00:00:39]}
11. Be3 {[%clk 00:19:33]} {[%emt 00:00:13]} Nd5 {[%clk 00:18:52]} {[%emt
00:00:15]} 12. Bf2 {[%clk 00:19:09]} {[%emt 00:00:29]} b6 {[%clk 00:18:36]}
{[%emt 00:00:22]} 13. Nc3 {[%clk 00:18:57]} {[%emt 00:00:16]} Nxc3 {[%clk
00:18:27]} {[%emt 00:00:13]} 14. bxc3 {[%clk 00:19:00]} {[%emt 00:00:03]} Bf6
{[%clk 00:18:28]} {[%emt 00:00:04]} 15. Ne5 {[%clk 00:18:58]} {[%emt 00:00:08]}
Bxe5 {[%clk 00:17:47]} {[%emt 00:00:46]} 16. Bxc6 {[%clk 00:18:55]} {[%emt
00:00:08]} Bxc3 {[%clk 00:17:23]} {[%emt 00:00:29]} 17. Bxa8 {[%clk 00:18:55]}
{[%emt 00:00:05]} Bxa1 {[%clk 00:17:18]} {[%emt 00:00:10]} 18. Qxa1 {[%clk
00:18:57]} {[%emt 00:00:02]} Ba6 {[%clk 00:16:59]} {[%emt 00:00:25]} 19. Bg2
{[%clk 00:18:48]} {[%emt 00:00:12]} c4 {[%clk 00:16:49]} {[%emt 00:00:17]} 20.
dxc4 {[%clk 00:18:45]} {[%emt 00:00:08]} Qc7 {[%clk 00:16:51]} {[%emt
00:00:02]} 21. Rd1 {[%clk 00:18:33]} {[%emt 00:00:17]} Qxc4 {[%clk 00:16:46]}
{[%emt 00:00:11]} 22. Rd7 {[%clk 00:18:28]} {[%emt 00:00:09]} Qxc2 {[%clk
00:16:19]} {[%emt 00:00:32]} 23. Rxa7 {[%clk 00:18:29]} {[%emt 00:00:05]} Bc4
{[%clk 00:16:17]} {[%emt 00:00:07]} 24. Bxb6 {[%clk 00:18:18]} {[%emt
00:00:16]} Rb8 {[%clk 00:15:59]} {[%emt 00:00:18]} 25. Qe1 {[%clk 00:17:43]}
{[%emt 00:00:43]} Rxb6 {[%clk 00:15:21]} {[%emt 00:00:44]} 26. Ra8+ {[%clk
00:17:43]} {[%emt 00:00:05]} Kh7 {[%clk 00:14:45]} {[%emt 00:00:41]} 27. Be4+
{[%clk 00:17:44]} {[%emt 00:00:03]} Qxe4 {[%clk 00:13:53]} {[%emt 00:00:57]} 28.
Qxe4+ {[%clk 00:17:48]} {[%emt 00:00:01]} f5 {[%clk 00:13:58]} 29. Qxc4 {[%clk
00:17:49]} {[%emt 00:00:05]} Rb1+ {[%clk 00:14:01]} {[%emt 00:00:01]} 30. Kf2
{[%clk 00:17:32]} {[%emt 00:00:21]} Rb2+ {[%clk 00:14:04]} {[%emt 00:00:02]} 31.
Ke1 {[%clk 00:17:30]} {[%emt 00:00:07]} Rb1+ {[%clk 00:14:07]} {[%emt
00:00:03]} 32. Kd2 {[%clk 00:17:30]} {[%emt 00:00:01]} Rb2+ {[%clk 00:14:02]}
{[%emt 00:00:13]} 33. Kc1 {[%clk 00:17:30]} {[%emt 00:00:05]} Rh2 {[%clk
00:13:06]} {[%emt 00:01:01]} 34. Qf1 {[%clk 00:17:08]} {[%emt 00:00:25]} h5
{[%clk 00:13:00]} {[%emt 00:00:14]} 35. Qd1 {[%clk 00:16:57]} {[%emt 00:00:14]}
Rxh3 {[%clk 00:12:59]} {[%emt 00:00:07]} 36. a4 {[%clk 00:16:56]} {[%emt
00:00:07]} Rxg3 {[%clk 00:13:00]} {[%emt 00:00:03]} 37. Qxh5# {[%emt 00:00:03]}
1-0

[Event "MCR rapid mládeže 2023 U16"]
[Site "Harachov, Czech Republic"]
[Date "2023.09.10"]
[Round "9.32"]
[White "Bartak, Tobias"]
[Black "Moravec, Rene"]
[Result "1/2-1/2"]
[TimeControl "20min+5s/move"]
[WhiteElo "1259"]
[BlackElo "1165"]

1. e4 {[%clk 00:20:10]} {[%emt 00:00:02]} c5 {[%clk 00:20:11]} {[%emt
00:00:07]} 2. Nf3 {[%clk 00:20:08]} {[%emt 00:00:06]} Nc6 {[%clk 00:20:11]}
{[%emt 00:00:05]} 3. Bb5 {[%clk 00:20:07]} {[%emt 00:00:05]} g6 {[%clk
00:20:11]} {[%emt 00:00:06]} 4. O-O {[%clk 00:20:07]} {[%emt 00:00:04]} Bg7
{[%clk 00:20:14]} {[%emt 00:00:03]} 5. c3 {[%clk 00:19:58]} {[%emt 00:00:15]}
Nf6 {[%clk 00:20:16]} {[%emt 00:00:02]} 6. Re1 {[%clk 00:19:53]} {[%emt
00:00:10]} d6 {[%clk 00:20:20]} 7. d4 {[%clk 00:19:48]} {[%emt 00:00:11]} O-O
{[%clk 00:20:18]} {[%emt 00:00:07]} 8. e5 {[%clk 00:19:05]} {[%emt 00:00:48]}
dxe5 {[%clk 00:20:20]} {[%emt 00:00:03]} 9. dxe5 {[%clk 00:19:01]} {[%emt
00:00:10]} Qxd1 {[%clk 00:20:23]} {[%emt 00:00:03]} 10. Rxd1 {[%clk 00:18:58]}
{[%emt 00:00:07]} Nd7 {[%clk 00:20:26]} {[%emt 00:00:02]} 11. Bxc6 {[%clk
00:18:53]} {[%emt 00:00:10]} bxc6 {[%clk 00:20:29]} {[%emt 00:00:02]} 12. Bf4
{[%clk 00:18:55]} {[%emt 00:00:03]} Nb6 {[%clk 00:20:18]} {[%emt 00:00:16]} 13.
Nbd2 {[%clk 00:18:39]} {[%emt 00:00:21]} Bf5 {[%clk 00:20:17]} {[%emt
00:00:06]} 14. Nf1 {[%clk 00:18:35]} {[%emt 00:00:08]} Rfd8 {[%clk 00:20:15]}
{[%emt 00:00:07]} 15. Ng3 {[%clk 00:18:28]} {[%emt 00:00:11]} Rxd1+ {[%clk
00:20:15]} {[%emt 00:00:07]} 16. Rxd1 {[%clk 00:18:30]} {[%emt 00:00:02]} Be6
{[%clk 00:20:17]} {[%emt 00:00:03]} 17. b3 {[%clk 00:18:11]} {[%emt 00:00:25]}
c4 {[%clk 00:20:14]} {[%emt 00:00:08]} 18. b4 {[%clk 00:17:54]} {[%emt
00:00:22]} Nd5 {[%clk 00:20:17]} {[%emt 00:00:01]} 19. Bd2 {[%clk 00:17:48]}
{[%emt 00:00:12]} a5 {[%clk 00:20:20]} {[%emt 00:00:02]} 20. Nd4 {[%clk
00:17:34]} {[%emt 00:00:18]} Bd7 {[%clk 00:20:21]} {[%emt 00:00:04]} 21. Nf3
{[%clk 00:16:56]} {[%emt 00:00:43]} axb4 {[%clk 00:20:22]} {[%emt 00:00:04]} 22.
cxb4 {[%clk 00:16:57]} {[%emt 00:00:04]} Rxa2 {[%clk 00:20:20]} {[%emt
00:00:08]} 23. Rc1 {[%clk 00:16:23]} {[%emt 00:00:38]} c3 {[%clk 00:20:12]}
{[%emt 00:00:13]} 24. Bxc3 {[%clk 00:16:11]} {[%emt 00:00:17]} Nxc3 {[%clk
00:20:05]} {[%emt 00:00:11]} 25. Rxc3 {[%clk 00:16:15]} {[%emt 00:00:02]} Ra1+
{[%clk 00:20:01]} {[%emt 00:00:10]} 26. Nf1 {[%clk 00:16:16]} {[%emt 00:00:03]}
Rb1 {[%clk 00:19:46]} {[%emt 00:00:20]} 27. Rd3 {[%clk 00:15:55]} {[%emt
00:00:27]} Be6 {[%clk 00:19:37]} {[%emt 00:00:13]} 28. Rd8+ {[%clk 00:15:49]}
{[%emt 00:00:11]} Bf8 {[%clk 00:19:41]} {[%emt 00:00:01]} 29. Rb8 {[%clk
00:15:53]} {[%emt 00:00:02]} Bc4 {[%clk 00:19:26]} {[%emt 00:00:19]} 30. N3d2
{[%clk 00:15:45]} {[%emt 00:00:12]} Rc1 {[%clk 00:19:20]} {[%emt 00:00:11]} 31.
Nxc4 {[%clk 00:15:35]} {[%emt 00:00:17]} Rxc4 {[%clk 00:19:22]} {[%emt
00:00:03]} 32. g3 {[%clk 00:15:16]} {[%emt 00:00:23]} Kg7 {[%clk 00:19:26]} 33.
b5 {[%clk 00:15:03]} {[%emt 00:00:20]} cxb5 {[%clk 00:19:28]} {[%emt 00:00:02]}
34. Rxb5 {[%clk 00:15:07]} {[%emt 00:00:02]} e6 {[%clk 00:19:28]} {[%emt
00:00:04]} 35. Ne3 {[%clk 00:15:02]} {[%emt 00:00:10]} Re4 {[%clk 00:19:24]}
{[%emt 00:00:08]} 36. Kg2 {[%clk 00:14:55]} {[%emt 00:00:13]} Rb4 {[%clk
00:19:11]} {[%emt 00:00:19]} 37. Rxb4 {[%clk 00:14:48]} {[%emt 00:00:13]} Bxb4
{[%emt 00:00:01]} 38. f4 {[%clk 00:14:36]} {[%emt 00:00:16]} f6 {[%clk
00:19:07]} {[%emt 00:00:12]} 39. Ng4 {[%clk 00:14:29]} {[%emt 00:00:12]} fxe5
{[%clk 00:19:03]} {[%emt 00:00:09]} 40. Nxe5 {[%clk 00:14:21]} {[%emt
00:00:13]} Kf6 {[%clk 00:19:04]} {[%emt 00:00:05]} 41. Kf3 {[%clk 00:14:19]}
{[%emt 00:00:06]} Bc3 {[%clk 00:19:06]} {[%emt 00:00:02]} 42. Ng4+ {[%clk
00:14:22]} {[%emt 00:00:03]} Kf5 {[%clk 00:19:04]} {[%emt 00:00:06]} 43. Nh6+
{[%clk 00:14:13]} {[%emt 00:00:15]} Kf6 {[%clk 00:19:04]} {[%emt 00:00:05]} 44.
Ng4+ {[%clk 00:14:13]} {[%emt 00:00:05]} Ke7 {[%clk 00:19:06]} {[%emt
00:00:02]} 45. h3 {[%clk 00:14:04]} {[%emt 00:00:15]} Kd6 {[%clk 00:18:57]}
{[%emt 00:00:14]} 46. Ne3 {[%clk 00:13:39]} {[%emt 00:00:29]} Kc5 {[%clk
00:18:48]} {[%emt 00:00:11]} 47. Ke4 {[%clk 00:13:30]} {[%emt 00:00:17]} Bd4
{[%clk 00:18:30]} {[%emt 00:00:23]} 48. Nc2 {[%clk 00:13:24]} {[%emt 00:00:11]}
Bf2 {[%clk 00:18:28]} {[%emt 00:00:08]} 49. g4 {[%clk 00:13:22]} {[%emt
00:00:07]} Bg3 {[%clk 00:18:24]} {[%emt 00:00:07]} 50. f5 {[%clk 00:13:21]}
{[%emt 00:00:07]} exf5+ {[%clk 00:18:26]} {[%emt 00:00:04]} 51. gxf5 {[%clk
00:13:24]} {[%emt 00:00:02]} gxf5+ {[%clk 00:18:29]} 52. Kxf5 {[%clk 00:13:28]}
{[%emt 00:00:01]} h5 {[%clk 00:18:27]} {[%emt 00:00:05]} 53. Kg5 {[%clk
00:13:28]} {[%emt 00:00:07]} h4 {[%clk 00:18:30]} {[%emt 00:00:01]} 54. Ne3
{[%clk 00:13:31]} {[%emt 00:00:03]} Kd4 {[%clk 00:18:25]} {[%emt 00:00:09]} 55.
Nf5+ {[%clk 00:13:35]} {[%emt 00:00:02]} Ke4 {[%clk 00:18:29]} {[%emt
00:00:01]} 56. Nxh4 {[%clk 00:13:39]} {[%emt 00:00:02]} Bxh4+ {[%clk 00:18:31]}
{[%emt 00:00:03]} 57. Kxh4 {[%clk 00:13:42]} {[%emt 00:00:01]} 1/2-1/2